Cogmind - Beta 17.1 @@@ ROGUE MODE // 2026.08.28 @ 23:39:54 // Winter2019/RPGLIKE Player: obl-vn Result: Destroyed by Y-45 Defender with Heavy Assault Rifle Performance ------------- Evolutions (1) 500 Regions Visited (3) 600 Robots Destroyed (39) 195 Value Destroyed (1010) 1010 Prototype IDs (2) 40 Alien Tech Used (0) 0 Bonus (-51) -51 TOTAL SCORE: 2294 Bonus ------- Friendly Fire -51 Cogmind --------- Core Integrity 0/600 Matter 300/300 Energy 136/160 System Corruption 0% Temperature Cool (9) Movement Hovering (56) Location -9/Materials Parts ------- > --- POWER (1) -------- Light Nuclear Core > --- PROPULSION (2) --- Hover Unit Hover Unit > --- UTILITY (5) ------ Advanced Heat Sink Machine Analyzer Transport Network Coupler Hacking Suite Hacking Suite > --- WEAPON (2) ------- Beam Cannon Beam Cannon > --- INVENTORY (2) ---- Grenade Launcher Datajack Peak State ------------ > --- POWER ------------ Light Nuclear Core > --- PROPULSION ------- Hover Unit Hover Unit > --- UTILITY ---------- Advanced Heat Sink Machine Analyzer Transport Network Coupler Hacking Suite Hacking Suite > --- WEAPON ----------- Beam Cannon Beam Cannon > --- INVENTORY -------- Grenade Launcher Datajack [Rating: 22] Favorites ----------- Power Light Nuclear Core Engine Ion Engine Power Core Light Nuclear Core Propulsion Hover Unit Wheel Compact Wheel Hover Unit Hover Unit Utility Transport Network Coupler Device Improved Heat Sink Processor Transport Network Coupler Hackware Hacking Suite Weapon Beam Cannon Energy Gun Small Laser Energy Cannon Beam Cannon Ballistic Gun Assault Rifle Launcher Grenade Launcher Build | -11 -10 -10 -9 ------- Run | Yrd Mat Min Mat Slots Evolved 6 | . 5 . 1 Power . | . . . . Propulsion 1 | . 1 . . Utility 4 | . 3 . 1 Weapon 1 | . 1 . . Parts Attached 21 | 3 14 3 1 Power 4 | 1 2 1 . Engine 2 | 1 1 . . Core 2 | . 1 1 . Reactor . | . . . . Propulsion 4 | 1 3 . . Treads . | . . . . Leg . | . . . . Wheel 2 | 1 1 . . Hover 2 | . 2 . . Flight . | . . . . Utility 8 | . 5 2 1 Device 4 | . 2 2 . Storage . | . . . . Processor 2 | . 2 . . Hackware 2 | . 1 . 1 Protection . | . . . . Artifact . | . . . . Weapon 5 | 1 4 . . Energy Gun 1 | . 1 . . Energy Cannon 2 | . 2 . . Ballistic Gun 1 | 1 . . . Ballistic Cannon . | . . . . Launcher 1 | . 1 . . Special Weapon . | . . . . Impact Weapon . | . . . . Slashing Weapon . | . . . . Piercing Weapon . | . . . . Special Melee Weapon . | . . . . Unidentified Prototypes . | . . . . Parts Lost . | . . . . Power . | . . . . Propulsion . | . . . . Utility . | . . . . Weapon . | . . . . Highest Loss Streak . | . . . . To Critical Strikes . | . . . . Average Backups 1 | . 1 2 2 Power . | . . . . Propulsion . | . . . . Utility . | . . . . Weapon . | . . 1 1 Tool/Special . | . . . . Unused Backups 1 | . . . 1 Power . | . . . . Propulsion . | . . . . Utility . | . . . . Weapon . | . . . . Tool/Special 1 | . . . 1 Average Slot Usage (%) 96 | . 95 100 100 Engine 6 | . 10 . . Core 8 | . 6 11 10 Wheel 10 | . 15 . . Hover 9 | . 2 22 20 Device 10 | . 10 11 10 Processor 17 | . 15 22 20 Hackware 4 | . . 11 16 Energy Gun 2 | . 3 . . Energy Cannon 23 | . 24 22 20 Ballistic Gun 3 | . 4 . . Peak Build Rating 22 | 3 17 19 22 Average Rating 11 | 2 8 17 20 On Entrance 9 | . 3 17 19 Avg Prop Armor Cover (%) . | . . . . Naked Turns . | . . . . Heaviest Build 12 | 5 12 12 12 Greatest Support 16 | 16 16 12 12 Greatest Overweight (x) 1 | . 1 . . Average Overweight (x) . | . . . . Largest Inventory Capacity 2 | . 2 2 2 Average Capacity 1 | . 1 2 2 Most Carried 2 | . 2 2 2 Average Carried 1 | . 1 2 2 Final Capacity 2 | . 2 2 2 Final Carried 2 | . 2 2 2 Class Distribution -------------------- 50% | Mutant 49% | Scavenger-Mutant Dominant Class ---------------- Mutant | -10/Materials Scavenger-Mutant | -10/Mines Scavenger-Mutant | -9/Materials Resources | -11 -10 -10 -9 ----------- Run | Yrd Mat Min Mat Matter Collected 490 | 201 249 30 10 Remotely . | . . . . Salvage Created 1144 | . 887 242 15 Parts 81 | . 67 12 2 Haulers Intercepted 2 | . 2 . . Recyclers Shooed 1 | . 1 . . Parts Field Recycled . | . . . . Retrieved Matter . | . . . . Parts Self-Destructed . | . . . . Prevented . | . . . . Parts Restored . | . . . . Kills | -11 -10 -10 -9 ------- Run | Yrd Mat Min Mat Combat Hostiles Destroyed 27 | . 22 4 1 Guns 2 | . 2 . . Cannons 21 | . 16 4 1 AOE 3 | . 3 . . Classes Destroyed 7 | . 7 . . Builder 1 | . 1 . . Hauler 2 | . 2 . . Operator 4 | . 3 . 1 Watcher 2 | . 2 . . Swarmer 11 | . 8 3 . Grunt 15 | . 11 3 1 Subdweller 3 | . 3 . . Best Kill Streak 6 | . 6 3 1 Combat Bots Only 5 | . 5 3 1 Max Kills in Single Turn 3 | . 3 1 1 Gunslinging . | . . . . Exploded 3 | . 3 . . Melee . | . . . . Uniques/NPCs Destroyed 1 | . . 1 . YI-UF0 (-10/Mines) Combat | -11 -10 -10 -9 -------- Run | Yrd Mat Min Mat Hostile Shots Fired 104 | . 75 23 6 Missed 25 | . 17 7 1 Hits 79 | . 58 16 5 Projectile 79 | . 58 16 5 AOE 11 | . . 11 . Critical Strikes 1 | . 1 . . Damage Taken 1166 | . 683 413 70 Core 962 | . 567 340 55 Absorbed by Shields . | . . . . Redirected to Core 657 | . 358 244 55 Core Remaining (%) 54 | 100 . 8 . Volleys Fired 128 | . 83 40 5 Largest 2 | . 2 2 2 Hottest 120 | . 120 120 120 Shots Fired 217 | . 161 46 10 Gun 39 | . 39 . . Cannon 177 | . 121 46 10 Launcher 1 | . 1 . . Special . | . . . . Kinetic 20 | . 20 . . Thermal 196 | . 140 46 10 Explosive 1 | . 1 . . Electromagnetic . | . . . . Robot Hit Streak 13 | . 13 7 5 Robot Miss Streak 5 | . 5 2 1 Penetration Max . | . . . . Secondary Targets . | . . . . Shots Hit Robots 108 | . 82 19 7 Core Hits 53 | . 39 12 2 Critical Kills 1 | . 1 . . Critical Parts Destroyed . | . . . . Critical Strikes 1 | . 1 . . Meltdown 1 | . 1 . . Melee Attacks . | . . . . Impact . | . . . . Slashing . | . . . . Piercing . | . . . . Sneak Attacks . | . . . . Combat Hostiles . | . . . . Follow-up Attacks . | . . . . Damage Inflicted 1936 | . 1459 353 124 Guns 278 | . 278 . . Cannons 1507 | . 1030 353 124 Explosions 151 | . 151 . . Melee . | . . . . Ramming . | . . . . Kinetic 159 | . 159 . . Thermal 1626 | . 1149 353 124 Explosive 151 | . 151 . . Electromagnetic . | . . . . Impact . | . . . . Slashing . | . . . . Piercing . | . . . . Highest Corruption . | . . . . Average Corruption . | . . . . Corruption Purged . | . . . . Corruption Blocked . | . . . . Overload Shots . | . . . . Overflow Damage 18 | . 18 . . Projectiles 18 | . 18 . . Explosions . | . . . . Melee . | . . . . Knockbacks . | . . . . Impact . | . . . . Kinetic . | . . . . Secondary . | . . . . Self-Inflicted Damage 33 | . 33 . . Shots 1 | . 1 . . Rammed . | . . . . Targets Rammed . | . . . . Kicked . | . . . . Crushed . | . . . . Highest Temperature 276 | . 276 92 24 Average Temperature 43 | . 49 23 12 Received Heat Transfer 246 | . 219 . 27 Siege Activations . | . . . . Martial Activations . | . . . . Shielding Activations . | . . . . Robots Disrupted . | . . . . Combat Hostiles . | . . . . Robots Corrupted . | . . . . Combat Hostiles . | . . . . Parts Fried . | . . . . Impact Corruptions . | . . . . Robots Melted 1 | . 1 . . Combat Hostiles 1 | . 1 . . Parts Melted 7 | . 7 . . Heat Transferred 3420 | . 2421 740 259 Parts Sabotaged . | . . . . Parts Stolen . | . . . . Parts Stripped . | . . . . Power Chain Reactions . | . . . . Alert | -11 -10 -10 -9 ------- Run | Yrd Mat Min Mat Maximum Alert Level 1 | . 1 1 . Low Security (%) 48 | 100 59 10 100 Level 1 51 | . 40 89 . Level 2 . | . . . . Level 3 . | . . . . Level 4 . | . . . . Level 5 . | . . . . High Security . | . . . . Max Security . | . . . . Peak Influence 350 | . 350 328 77 Initial 133 | . . 133 71 Average 179 | . 160 254 64 Influence Increases 1032 | . 731 265 36 Destroy 0b10 Robot/C 460 | . 380 60 20 Destroy 0b10 Robot/NC 45 | . 40 . 5 Destroy Leader 98 | . 78 10 10 Successful Hack 25 | . 25 . . Disable Machine 360 | . 165 195 . Destroy Structure 14 | . 13 . 1 Partial Spotted 15 | . 15 . . Lose Combat Pursuer 15 | . 15 . . Influence Decreases 955 | . 387 425 143 Entered New Map 324 | . . 211 113 Time Decay 631 | . 387 214 30 Squads Dispatched 4 | . 3 . 1 Investigation . | . . . . Extermination . | . . . . Reinforcement 4 | . 3 . 1 Assault . | . . . . Garrison . | . . . . Intercept . | . . . . Searches Triggered . | . . . . Construction Impeded . | . . . . Haulers Reinforced . | . . . . Active Scanning Responses . | . . . . Cargo Convoy Interrupts . | . . . . Stealth | -11 -10 -10 -9 --------- Run | Yrd Mat Min Mat Distress Signals 2 | . 2 . . Communications Jammed . | . . . . Distress Signals . | . . . . Times Spotted 49 | . 40 6 3 Peak Tracking Total 6 | . 6 3 4 Tactical Retreats 3 | . 1 2 . Traps | -11 -10 -10 -9 ------- Run | Yrd Mat Min Mat Traps Triggered . | . . . . Indirectly . | . . . . Trap Hack Attempts . | . . . . Triggered . | . . . . Disarmed . | . . . . Reprogrammed . | . . . . Reused . | . . . . Traps Extracted . | . . . . Installed . | . . . . Triggered . | . . . . Machines | -11 -10 -10 -9 ---------- Run | Yrd Mat Min Mat Machines Disabled 25 | . 12 13 . Max in Single Turn 1 | . 1 1 . Machines Repaired . | . . . . Machines Dismantled . | . . . . Machines Sabotaged . | . . . . Overloaded Fab Kills . | . . . . Hacking | -11 -10 -10 -9 --------- Run | Yrd Mat Min Mat Machines Accessed 7 | . 5 . 2 Terminals 7 | . 5 . 2 Fabricators . | . . . . Repair Stations . | . . . . Recycling Units . | . . . . Scanalyzers . | . . . . Garrison Access . | . . . . Total Hacks 21 | . 13 . 8 Successful 13 | . 9 . 4 Failed 8 | . 4 . 4 Catastrophic 1 | . 1 . . Database Lockouts . | . . . . Manual 18 | . 12 . 6 Terminals 21 | . 13 . 8 Fabricators . | . . . . Repair Stations . | . . . . Recycling Units . | . . . . Scanalyzers . | . . . . Garrison Access . | . . . . Terminal Hacks 4 | . 3 . 1 Robot Analysis 2 | . 2 . . Prototype ID Bank 1 | . . . 1 Zone Layout 1 | . 1 . . Fabricator Hacks . | . . . . Repair Station Hacks . | . . . . Recycling Unit Hacks . | . . . . Scanalyzer . | . . . . Garrison Access Hacks . | . . . . Unauthorized Hacks 9 | . 6 . 3 Terminals 9 | . 6 . 3 Botnet 2 | . 1 . 1 Skim 7 | . 5 . 2 Fabricators . | . . . . Repair Stations . | . . . . Recycling Units . | . . . . Scanalyzers . | . . . . Garrison Access . | . . . . Data Cores Recovered . | . . . . Used . | . . . . Hacking Detections 5 | . 3 . 2 Full Trace Events . | . . . . Feedback Events . | . . . . Feedback Blocked . | . . . . Robot Schematics Acquired . | . . . . Robots Built . | . . . . Authchips . | . . . . Time . | . . . . Total Robot Build Rating . | . . . . Part Schematics Acquired . | . . . . Parts Built . | . . . . Authchips . | . . . . Time . | . . . . Total Part Build Rating . | . . . . Part Studies Acquired . | . . . . Parts Repaired . | . . . . Time . | . . . . Parts Recycled . | . . . . Recycled Matter . | . . . . Retrieved Matter . | . . . . Retrieved Components . | . . . . Parts Scanalyzed . | . . . . Part Schematics Acquired . | . . . . Parts Damaged . | . . . . Bothacking | -11 -10 -10 -9 ------------ Run | Yrd Mat Min Mat Used RIF Installer . | . . . . Robots Hacked . | . . . . Non-combat . | . . . . Combat . | . . . . Robot Hacks Applied . | . . . . Relay Couplers Released . | . . . . Fabnet Peak Effective % . | . . . . Robots Rewired . | . . . . Allies Hacked . | . . . . Hacks Repelled . | . . . . Allies | -11 -10 -10 -9 -------- Run | Yrd Mat Min Mat Total Allies 4 | . . 4 . Largest Group 3 | . . 3 . Highest-Rated Group 40 | . . 40 . Highest-Rated Ally 31 | . . 31 . Total Orders . | . . . . Ally Attacks . | . . . . Total Damage . | . . . . Kills . | . . . . Allies Corrupted . | . . . . Allies Melted . | . . . . Intel | -11 -10 -10 -9 ------- Run | Yrd Mat Min Mat Active Infowar (turns) 1337 | . 804 457 76 T.N.C. 1337 | . 804 457 76 Machine Analysis 791 | . 258 457 76 Robot Analysis Total 2 | . 2 . . Derelict Logs Recovered 1 | . . 1 . Drone Launches . | . . . . Drone Recoveries . | . . . . Exploration | -11 -10 -10 -9 ------------- Run | Yrd Mat Min Mat Turns Passed 1593 | 34 1026 457 76 Spaces Moved 1422 | 39 706 601 76 Core 17 | 17 . . . Treads . | . . . . Legs . | . . . . Wheels 609 | 22 587 . . Hover 796 | . 119 601 76 Flight . | . . . . Fastest Speed 50 | 50 56 56 56 Average Speed 74 | 78 91 56 56 Slowest Speed 125 | 100 125 56 56 Overloaded Moves . | . . . . Propulsion Burnouts . | . . . . Robots Hopped . | . . . . Potential Cave-ins . | . . . . Cave-ins Triggered . | . . . . Exploration Rate (%) 49 | 3 96 91 9 Regions Visited 3 Branch Regions 1 Pre-discovered Areas 1 | . 1 . . Known Exits Taken 1 | . . 1 . Unknown Exits Taken 2 | 1 1 . . Scrap Searched 2 | . . 2 . Spaces Dug . | . . . . Terrain Destroyed 8 | . 8 . . Melee . | . . . . Projectile . | . . . . AOE 8 | . 8 . . Terrain Rammed . | . . . . Walls Destroyed . | . . . . Machines Disabled . | . . . . Actions | -11 -10 -10 -9 --------- Run | Yrd Mat Min Mat Total 1737 | 41 919 676 101 Wait 139 | . 96 24 19 Move 1419 | 38 705 600 76 Hop . | . . . . Pick Up 2 | . 2 . . Fast Attach 14 | 3 10 . 1 Attach . | . . . . Detach . | . . . . Swap 8 | . 5 3 . Drop 10 | . 7 3 . Fire 128 | . 83 40 5 Melee . | . . . . Ram . | . . . . Kick . | . . . . Crush . | . . . . Escape Stasis . | . . . . Rewire . | . . . . Trap . | . . . . Miscellaneous 17 | . 11 6 . Route ------- -11/Scrapyard -10/Materials (discovered 5 exits: *Mat x3 / [*Min] / [*Sub]) -10/Mines (discovered 2 exits: *Mat x2) -9/Materials (discovered 1 exit: Min) History --------- Turn | Location | Event 8 | -11/Scrapyard | Discovered new exit (range 15) 35 | -11/Scrapyard | Entered Materials 70 | -10/Materials | Upgraded with Weapon slot (x1) 316 | -10/Materials | Build established: Mutant 329 | -10/Materials | Upgraded with Utility slot (x1) 489 | -10/Materials | Discovered new exit (range 15) 498 | -10/Materials | Reached level 2 567 | -10/Materials | Discovered new exit (range 10) 635 | -10/Materials | Derelicts attacked the area 735 | -10/Materials | Discovered new exit (range 9) 802 | -10/Materials | Upgraded with Utility slot (x1) 867 | -10/Materials | Learned location of Mines (-10) 911 | -10/Materials | Core integrity fell below 50% 928 | -10/Materials | Identified exit to Materials 951 | -10/Materials | Upgraded with Propulsion slot (x1) 1016 | -10/Materials | Upgraded with Utility slot (x1) 1022 | -10/Materials | Learned 2 Storage zone layouts 1048 | -10/Materials | Reached level 3 1061 | -10/Materials | Entered Mines 1113 | -10/Mines | Build established: Scavenger-Mutant 1166 | -10/Mines | Reached level 4 1264 | -10/Mines | Assisted by bots powering up and referring to "LRC-V3" 1311 | -10/Mines | Murdered 3 allies 1333 | -10/Mines | YI-UF0 nonchalantly dropped a Grenade Launcher on the ground 1413 | -10/Mines | Core integrity fell below 20% 1431 | -10/Mines | Destroyed YI-UF0 1498 | -10/Mines | Discovered exit to Materials (range 5) 1500 | -10/Mines | Received a Mining Laser from a helpful Derelict 1518 | -10/Mines | Entered Materials 1519 | -9/Materials | Identified exit to Mines 1519 | -9/Materials | Core integrity fell below 50% 1519 | -9/Materials | Core integrity fell below 20% 1520 | -9/Materials | Reached level 5 1544 | -9/Materials | Upgraded with Utility slot (x1) 1594 | -9/Materials | Destroyed by Y-45 Defender with Heavy Assault Rifle Last Messages --------------- Please expand to 3 more systems! >>Trojan(Botnet) Trojan loaded successfully. Testing... Terminal linked with 0 systems. Awaiting botnet instructions. >>Prototypes Downloading prototype IDs... Adv. Beam Rifle Adv. Beam Cannon 01538_ >> Machine Analyzer network decryption results: 01538_ Terminal x1 01540_ O-16 Technician destroyed. 01540_ K-01 Serf collects debris. 01544_ Upgraded: Utility Slot (+1) 01544_ Acquired Hacking Suite. 01546_ K-01 Serf collects debris. 01547_ Acquired 10 matter. 01585_ G-34 Mercenary destroyed. Map ----- +----------------------------------------------------+ | | | | | | | | | | | | | | | | | | | | | | | | | | | | | | | | | ?????????????????????????????????????????????????? | | ?????????????????????????????????????????????????? | | ?????????????????????????????????????????????????? | | ?????????????????????????????????????????????????? | | ?????????????????????????????????????????????????? | | ?????????????????????????????????????????????????? | | ?????????????????????????????????????????????????? | | ?????????????????????????????????????????????????? | | ############################????????????????????a? | | @*#?????????????????????? | | ##########################Y#??""?????????????????? | | ?????????????????????????# #??"T?????????????????? | | ?????????????????????????# #??""?????????????????? | | ?????????????????????????# #?????????????????????? | | ????????????????????????? ?????????????????????? | | ????????????????????????? ?????????????????????? | | ????????????????????????? ?????????????????????? | | ????????????????????????? ?????????????????????? | | ????????????????????????? ?????????????????????? | | ????????????????????????? ?????????????????????? | | ????????????????????????# #????????????????????? | | ???????????????????????? ????????????????????? | | ???????????????????????? ????????????????????? | | ???????????????????????? ????????????????????? | | ???????????????????????? ????????????????????? | | ???????????????????????? ????????????????????? | | ?????????????????????????????????????????????????? | | ?????????????????????????????????????????????????? | | ?????????????????????????????????????????????????? | | ?????????????????????????????????????????????????? | | ?????????????????????????????????????????????????? | | ?????????????????????????????????????????????????? | | ?????????????????????????????????????????????????? | | ?????????????????????????????????????????????????? | +----------------------------------------------------+ Best States ------------- Heat Dissipation 44 Energy Generation 14 Energy Capacity 250 Matter Stores 300 Matter Capacity 300 Sight Range 16 Terrain Scan Density 10 Evasion (%) 53 Offensive Hacking 20 Item Schematics ----------------- None Robot Schematics ------------------ None Fabricated ------------ Nothing Repaired ---------- Nothing Studied --------- None Alien Tech Used ----------------- None Achievements -------------- None Challenges ------------ None RPGLIKE | -11 -10 -10 -9 --------- Run | Yrd Mat Min Mat Levels Raised 4 | . 2 1 1 XP Earned 9550 | 3000 3075 1825 1650 XP Spent 5550 | . 4150 . 1400 Upgrades 8 | . 7 . 1 Propulsion Slot 1 | . 1 . . Utility Slot 4 | . 3 . 1 Weapon Slot 1 | . 1 . . Inventory Capacity 2 | . 2 . . Protomatter Created 301 | . 204 55 42 Integrity Restored 360 | . 219 141 . Core 360 | . 219 141 . Protomatter Decayed 40 | . 40 . . Game ------ Seed MetafiberRagnarokBarrier Manual? 0 Play Time 00:16:55 Cumulative 239.5 hours Start 2026.08.27 @ 15:58:56 End 2026.08.28 @ 23:39:54 Sessions 3 Manual Loads 0 Difficulty Rogue Special Mode Winter2019/RPGLIKE Game No. 152 Rogue 152 Adventurer 0 Explorer 0 Win Type - Total 6 Types 2/0/2/1/0/0/0/1/0/0 Lore% 59 Gallery% 74 Achievement% 58 Wizard Run 0 Options --------- Layout 2 ASCII 0 Keyboard 0 Movement Mouse Keybinds 0 Fullscreen 1 Font 32/SmallcapsGlow Map View 50x44 Zoom Use 0% Tactical HUD 1 Map Filters NONE Filters NONE Steam 1 RUN: 46ca9381-7b51-4cfc-a288-cb01ad9138e8